fUST/lending_fUST_20250617
["ID","MTS","AMOUNT","RATE_DAILY","PERIOD"]
[366229349,1750140633231,-212.4931516,0.00023984,2]
[366229350,1750140633241,-1233.98365373,0.00023984,2]
[366229351,1750140633252,-1233.98365373,0.00023984,2]
[366229352,1750140633261,-295.4380979,0.00023985,2]
[366229353,1750140633272,-933.99,0.0002399,3]
[366229354,1750140633282,-466.99,0.0002399,3]
[366229355,1750140633292,-233.5,0.0002399,3]
[366229356,1750140633302,-700.5,0.0002399,3]
[366229357,1750140633312,-612.883875,0.00023999,3]
[366229358,1750140633322,-3425.74319682,0.00024,2]
[366229366,1750140638234,-642.14051257,0.00023984,2]
[366229394,1750140640495,-250.0,0.00022656,2]
[366229395,1750140640505,-591.84314116,0.00023984,2]
[366229396,1750140640515,-1233.98365373,0.00023984,2]
[366229397,1750140640526,-528.45167939,0.00023984,2]
[366229440,1750140643339,-705.53197434,0.00023984,2]
[366229442,1750140643349,-5.46802566,0.00023984,2]
[366229449,1750140643417,-393.55482928,0.00023984,2]
[366229662,1750140646491,-500.0,0.00022611,2]
[366229664,1750140646501,-122.74793,0.00022611,2]
[366230043,1750141206864,704.0,0.00024658,120]
[366230070,1750141752939,64.60825756,0.0002,2]
[366230071,1750141752963,10000.0,0.0002,2]
[366230072,1750141752986,10000.0,0.0002,2]
[366230073,1750141753008,10000.0,0.0002,2]
[366230074,1750141753030,10000.0,0.0002,2]
[366230075,1750141753053,10000.0,0.0002,2]
[366230076,1750141753077,10000.0,0.0002,2]
[366230077,1750141753100,3935.39174244,0.0002,2]
[366230378,1750141846430,-5000.0,0.00020426,2]
[366230380,1750141846440,-300.0,0.00020998,2]
[366230382,1750141846452,-218.9312388,0.00021122,2]
[366230384,1750141846461,-220.68698554,0.000219,6]
[366230386,1750141846471,-351.28208243,0.00022,2]
[366230388,1750141846481,-14704.48006176,0.00022,2]
[366230390,1750141846491,-220.68698532,0.00022003,6]
[366230392,1750141846500,-220.68698532,0.00022107,6]
[366230394,1750141846510,-220.68698532,0.0002221,6]
[366230396,1750141846520,-220.68698532,0.00022314,7]
[366230398,1750141846531,-207.4,0.00022383,2]
[366230400,1750141846540,-220.68698532,0.00022417,7]
[366230402,1750141846549,-34.00778482,0.00022421,2]
[366230432,1750141846833,-163.57693838,0.00022421,2]
[366230434,1750141846843,-1002.52213142,0.000225,2]
[366230436,1750141846852,-220.68698532,0.00022521,7]
[366230438,1750141846861,-220.68698532,0.00022624,7]
[366230441,1750141846882,-160.0,0.00022628,2]
[366230443,1750141846893,-220.68698532,0.00022728,7]
[366230445,1750141846903,-220.68698532,0.00022831,8]
[366230447,1750141846913,-241.0,0.00022841,2]
[366230449,1750141846923,-220.68698532,0.00022934,8]
[366230451,1750141846932,-220.68698532,0.00023038,8]
[366230453,1750141846941,-220.68698532,0.00023141,8]
[366230455,1750141846951,-220.68698532,0.00023245,8]
[366230457,1750141846961,-220.68698532,0.00023348,9]
[366230459,1750141846970,-94.05564405,0.00023452,9]
[366230462,1750141846984,-126.63134127,0.00023452,9]
[366230464,1750141846995,-525.329035,0.0002352,3]
[366230466,1750141847005,-220.68698532,0.00023555,9]
[366230468,1750141847015,-220.68698532,0.00023659,9]
[366230470,1750141847025,-337.00833833,0.00023751,2]
[366230472,1750141847035,-500.0,0.00023751,2]
[366230474,1750141847045,-369.65731476,0.00023751,2]
[366230723,1750142417334,172.891413,0.00013699,2]
[366230725,1750142419876,5000.0,0.0002,2]
[366230731,1750142785694,208.0,0.00024,120]
[366230732,1750142804076,200.0,0.000246,120]
[366230736,1750143004152,891.71684456,0.0002,2]
[366230737,1750143004177,4108.28315544,0.0002,2]
[366230774,1750143032632,-1962.77494799,0.00020457,2]
[366230857,1750143038859,-1340.0574131,0.00020457,2]
[366230858,1750143038871,-976.4513592,0.00020457,2]
[366230859,1750143038894,-720.71627971,0.00020457,2]
[366230860,1750143038905,-1082.22,0.00020664,2]
[366230861,1750143038916,-168.0,0.00022077,2]
[366230862,1750143038925,-207.4,0.00022383,2]
[366230864,1750143038936,-2164.44,0.00022542,2]
[366230866,1750143038946,-1045.0263779,0.00022641,2]
[366230868,1750143038956,-203.7110634,0.000229,8]
[366230870,1750143038966,-203.71106337,0.0002315,8]
[366230872,1750143038976,-168.0,0.00023397,2]
[366230873,1750143038986,-203.71106337,0.000234,9]
[366230875,1750143038996,-450.28203,0.0002352,3]
[366230877,1750143039005,-203.71106337,0.0002365,9]
[366230879,1750143039015,-215.0738,0.00023752,2]
[366230881,1750143039024,-171.8700792,0.000239,2]
[366230883,1750143039035,-3998.33669864,0.000239,2]
[366230885,1750143039044,-203.71106337,0.000239,10]
[366230887,1750143039055,-964.0,0.00023931,2]
[366230889,1750143039064,-653.0,0.00023931,2]
[366230891,1750143039074,-2160.0,0.00023931,2]
[366230893,1750143039084,-150.0,0.00023931,2]
[366230894,1750143039094,-171.0199568,0.00023934,2]
[366230895,1750143039104,-173.32406817,0.00023973,2]
[366230896,1750143039114,-168.0,0.00023982,2]
[366230897,1750143039124,-5000.0,0.00023986,2]
[366230898,1750143039134,-647.25,0.0002399,3]
[366230899,1750143039143,-323.63,0.0002399,3]
[366230900,1750143039153,-161.81,0.0002399,3]
[366230901,1750143039162,-485.48,0.0002399,3]
[366230902,1750143039173,-276.81,0.0002399,10]
[366230903,1750143039182,-500.0,0.00023994,2]
[366230904,1750143039192,-246.33518119,0.00023995,2]
[366230905,1750143039201,-500.0,0.00023995,2]
[366230906,1750143039211,-500.0,0.00023995,2]
[366230907,1750143039222,-500.0,0.00023995,2]
[366230908,1750143039232,-500.0,0.00023995,2]
[366230909,1750143039241,-500.0,0.00023995,2]
[366230910,1750143039252,-500.0,0.00023995,2]
[366230911,1750143039262,-500.0,0.00023995,2]
[366230912,1750143039273,-500.0,0.00023995,2]
[366230913,1750143039283,-94.26629056,0.00023995,2]
[366231027,1750143040883,-405.73370944,0.00023995,2]
[366231030,1750143040893,-500.0,0.00023995,2]
[366231033,1750143040904,-500.0,0.00023995,2]
[366231036,1750143040914,-500.0,0.00023995,2]
[366231039,1750143040923,-500.0,0.00023995,2]
[366231042,1750143040933,-500.0,0.00023995,2]
[366231045,1750143040943,-500.0,0.00023995,2]
[366231047,1750143040953,-628.28443232,0.00023995,2]
[366231049,1750143040962,-500.0,0.00023995,2]
[366231051,1750143040972,-500.0,0.00023995,2]
[366231054,1750143040982,-500.0,0.00023995,2]
[366231056,1750143040992,-239.81369966,0.00023999,2]
[366231059,1750143041001,-1375.37517762,0.00023999,2]
[366231062,1750143041011,-1375.37517762,0.00023999,2]
[366231065,1750143041022,-1375.37517762,0.00023999,2]
[366231068,1750143041031,-1375.37517762,0.00023999,2]
[366231071,1750143041040,-1375.37517762,0.00023999,2]
[366231074,1750143041050,-1375.37517762,0.00023999,2]
[366231077,1750143041059,-1375.37517762,0.00023999,2]
[366231080,1750143041069,-1375.37517762,0.00023999,2]
[366231083,1750143041079,-1375.37517762,0.00023999,2]
[366231086,1750143041089,-1375.37517762,0.00023999,2]
[366231089,1750143041099,-1375.37517762,0.00023999,2]
[366231092,1750143041110,-1402.3144013,0.00023999,2]
[366231095,1750143041119,-1402.3144013,0.00023999,2]
[366231098,1750143041130,-1402.3144013,0.00023999,2]
[366231101,1750143041139,-1402.3144013,0.00023999,2]
[366231103,1750143041150,-1402.3144013,0.00023999,2]
[366231106,1750143041160,-1402.3144013,0.00023999,2]
[366231109,1750143041170,-1402.3144013,0.00023999,2]
[366231112,1750143041180,-1402.3144013,0.00023999,2]
[366231115,1750143041190,-1402.3144013,0.00023999,2]
[366231118,1750143041200,-1402.3144013,0.00023999,2]
[366231122,1750143041210,-1464.24995402,0.00023999,2]
[366231125,1750143041221,-1464.24995402,0.00023999,2]
[366231128,1750143041230,-1464.24995402,0.00023999,2]
[366231131,1750143041240,-1464.24995402,0.00023999,2]
[366231134,1750143041249,-1464.24995402,0.00023999,2]
[366231136,1750143041259,-1464.24995402,0.00023999,2]
[366231139,1750143041269,-5861.30050318,0.00024,2]
[366231142,1750143041280,-9682.84036073,0.00024,2]
[366231144,1750143041291,-180450.30343006,0.00024,2]
[366231147,1750143041301,-371.3625895,0.00024,2]
[366231148,1750143041310,-500.0,0.00024,2]
[366231151,1750143041320,-300.0,0.00024,2]
[366231153,1750143041330,-424.62582665,0.00024,7]
[366231156,1750143041340,-5396.39,0.00024,7]
[366231158,1750143041350,-527.72247106,0.00024,2]
[366231161,1750143041360,-18697.32488168,0.00024,2]
[366231163,1750143041369,-7000.0,0.00024,7]
[366231166,1750143041379,-151.0,0.00024,7]
[366231169,1750143041389,-48301.57300898,0.00024,2]
[366231171,1750143041398,-151.621788,0.00024,7]
[366231174,1750143041408,-151.0,0.00024,7]
[366231177,1750143041418,-166.626699,0.00024,7]
[366231179,1750143041428,-151.0,0.00024,7]
[366231182,1750143041442,-151.0,0.00024,7]
[366231184,1750143041451,-297.48008,0.00024,7]
[366231187,1750143041461,-151.0,0.00024,7]
[366231189,1750143041470,-151.0,0.00024,7]
[366231191,1750143041479,-151.0,0.00024,7]
[366231194,1750143041489,-151.0,0.00024,7]
[366231196,1750143041498,-156.884135,0.00024,7]
[366231199,1750143041508,-151.0,0.00024,7]
[366231202,1750143041518,-151.0,0.00024,7]
[366231204,1750143041529,-152.006539,0.00024,7]
[366231207,1750143041538,-151.0,0.00024,7]
[366231210,1750143041548,-151.0,0.00024,7]
[366231212,1750143041558,-151.0,0.00024,7]
[366231214,1750143041567,-211.684126,0.00024,7]
[366231217,1750143041579,-154.795197,0.00024,7]
[366231220,1750143041589,-153.213618,0.00024,7]
[366231222,1750143041598,-152.832599,0.00024,7]
[366231225,1750143041608,-151.0,0.00024,7]
[366231263,1750143041829,-151.0,0.00024,7]
[366231267,1750143041842,-153.396896,0.00024,7]
[366231270,1750143041853,-152.155264,0.00024,7]
[366231273,1750143041863,-151.0,0.00024,7]
[366231276,1750143041874,-151.0,0.00024,7]
[366231280,1750143041885,-151.0,0.00024,7]
[366231283,1750143041895,-154.321168,0.00024,7]
[366231285,1750143041905,-152.655123,0.00024,7]
[366231288,1750143041915,-152.935723,0.00024,7]
[366231291,1750143041924,-151.0,0.00024,7]
[366231294,1750143041934,-151.0,0.00024,7]
[366231297,1750143041944,-156.17412,0.00024,7]
[366231300,1750143041954,-151.0,0.00024,7]
[366231303,1750143041964,-151.0,0.00024,7]
[366231306,1750143041973,-151.0,0.00024,7]
[366231309,1750143041983,-151.0,0.00024,7]
[366231312,1750143041993,-151.0,0.00024,7]
[366231315,1750143042003,-151.984884,0.00024,7]
[366231318,1750143042012,-151.0,0.00024,7]
[366231321,1750143042022,-152.176377,0.00024,7]
[366231324,1750143042032,-151.0,0.00024,7]
[366231326,1750143042041,-151.0,0.00024,7]
[366231329,1750143042051,-151.0,0.00024,7]
[366231332,1750143042060,-151.0,0.00024,7]
[366231335,1750143042069,-151.0,0.00024,7]
[366231338,1750143042080,-151.0,0.00024,7]
[366231341,1750143042089,-151.0,0.00024,7]
[366231344,1750143042099,-151.0,0.00024,7]
[366231347,1750143042109,-151.0,0.00024,7]
[366231350,1750143042119,-151.0,0.00024,7]
[366231353,1750143042130,-151.0,0.00024,7]
[366231356,1750143042140,-249.107223,0.00024,7]
[366231359,1750143042149,-151.0,0.00024,7]
[366231362,1750143042159,-151.0,0.00024,7]
[366231364,1750143042169,-151.0,0.00024,7]
[366231367,1750143042179,-151.0,0.00024,7]
[366231370,1750143042189,-154.464627,0.00024,7]
[366231373,1750143042199,-151.0,0.00024,7]
[366231376,1750143042208,-151.0,0.00024,7]
[366231379,1750143042218,-6000.0,0.00024026,3]
[366231382,1750143042227,-424.62582665,0.00024026,3]
[366231385,1750143042238,-835.82910252,0.00024026,3]
[366231388,1750143042248,-160.0,0.00024026,3]
[366231391,1750143042258,-168.0,0.00024101,2]
[366231394,1750143042268,-203.71106337,0.0002415,10]
[366231397,1750143042278,-158.7816813,0.00024164,2]
[366231399,1750143042288,-176.5526112,0.00024164,2]
[366231402,1750143042298,-573.4653004,0.00024164,2]
[366231405,1750143042308,-171.8700792,0.00024229,2]
[366231408,1750143042318,-168.0,0.00024233,2]
[366231411,1750143042330,-160.51748219,0.000243,11]
[366231414,1750143042340,-3998.33669864,0.00024388,2]
[366231419,1750143042354,-806.36077028,0.00024399,2]
[366231422,1750143042364,-203.71106337,0.000244,11]
[366231425,1750143042374,-3246.66,0.00024421,2]
[366231428,1750143042384,-800.0,0.00024435,2]
[366231430,1750143042394,-800.0,0.00024475,2]
[366231433,1750143042404,-151.0,0.000245,7]
[366231436,1750143042414,-12500.0,0.0002451,3]
[366231439,1750143042423,-151.0,0.0002451,7]
[366231442,1750143042433,-156.278267,0.0002451,7]
[366231445,1750143042444,-151.0,0.0002451,7]
[366231448,1750143042454,-151.0,0.0002451,7]
[366231451,1750143042464,-151.0,0.0002451,7]
[366231454,1750143042473,-151.0,0.0002451,7]
[366231457,1750143042483,-151.0,0.0002451,7]
[366231460,1750143042493,-151.0,0.0002451,7]
[366231462,1750143042503,-152.074667,0.0002451,7]
[366231464,1750143042513,-279.793296,0.0002451,7]
[366231466,1750143042524,-151.0,0.0002451,7]
[366231468,1750143042534,-151.0,0.0002451,7]
[366231470,1750143042544,-299.913851,0.0002451,7]
[366231472,1750143042554,-22653.0,0.0002451,7]
[366231475,1750143042564,-4852.17252509,0.00024521,3]
[366231477,1750143042574,-380.85424958,0.00024542,3]
[366231479,1750143042584,-171.8700792,0.00024557,2]
[366231481,1750143042593,-1859.722189,0.0002456,5]
[366231483,1750143042603,-151.0,0.0002456,7]
[366231485,1750143042613,-157.920382,0.0002456,7]
[366231487,1750143042622,-1000.0,0.0002458,5]
[366231489,1750143042632,-2603.34,0.000246,7]
[366231491,1750143042642,-280.766033,0.000246,7]
[366231493,1750143042652,-151.0,0.000246,7]
[366231495,1750143042661,-1000.0,0.000246,5]
[366231497,1750143042672,-151.0,0.000246,7]
[366231499,1750143042681,-151.0,0.00024646,7]
[366231501,1750143042691,-151.0,0.0002465,7]
[366231503,1750143042700,-203.71106337,0.0002465,11]
[366231505,1750143042710,-15770.12487866,0.00024656,15]
[366231507,1750143042721,-151.0,0.00024656,7]
[366231509,1750143042730,-151.0,0.00024656,7]
[366231511,1750143042739,-151.0,0.00024657,7]
[366231513,1750143042748,-253.265973,0.00024657,7]
[366231515,1750143042758,-151.0,0.00024657,7]
[366231517,1750143042767,-285.886681,0.00024657,7]
[366231519,1750143042776,-158.692132,0.00024657,7]
[366231521,1750143042786,-151.0,0.00024657,7]
[366231523,1750143042795,-151.0,0.00024657,7]
[366231525,1750143042805,-151.0,0.00024657,7]
[366231527,1750143042814,-151.0,0.00024657,7]
[366231529,1750143042824,-151.0,0.00024657,7]
[366231531,1750143042833,-151.0,0.00024657,7]
[366231533,1750143042845,-281.114962,0.00024657,7]
[366231535,1750143042854,-460.0,0.00024657,6]
[366231538,1750143042864,-471.32118115,0.00024657,6]
[366231541,1750143042873,-151.0,0.00024657,7]
[366231544,1750143042883,-514.73725956,0.00024657,2]
[366231547,1750143042892,-500.0,0.00024657,2]
[366231550,1750143042902,-377.68399799,0.00024657,2]
[366231553,1750143042912,-203.2882578,0.00024657,2]
[366231556,1750143042921,-460.0,0.00024657,6]
[366231559,1750143042932,-595.86268265,0.00024657,6]
[366231562,1750143042942,-460.0,0.00024657,6]
[366231565,1750143042952,-463.62406513,0.00024657,6]
[366231568,1750143042961,-460.0,0.00024657,6]
[366231571,1750143042971,-453.88678696,0.00024657,6]
[366231574,1750143042981,-460.0,0.00024657,6]
[366231577,1750143042990,-452.20327833,0.00024657,6]
[366231580,1750143043000,-460.0,0.00024657,6]
[366231583,1750143043010,-460.0,0.00024657,6]
[366231586,1750143043019,-460.0,0.00024657,6]
[366231589,1750143043029,-460.0,0.00024657,6]
[366231592,1750143043039,-460.0,0.00024657,6]
[366231595,1750143043049,-460.0,0.00024657,6]
[366231598,1750143043059,-460.0,0.00024657,6]
[366231601,1750143043069,-460.0,0.00024657,6]
[366231604,1750143043079,-495.64287143,0.00024657,6]
[366231607,1750143043089,-460.0,0.00024657,6]
[366231610,1750143043099,-460.0,0.00024657,6]
[366231613,1750143043108,-601.59152722,0.00024657,6]
[366231617,1750143043120,-417.2979077,0.00024657,6]
[366231620,1750143043129,-460.0,0.00024657,6]
[366231623,1750143043139,-526.48777752,0.00024657,6]
[366231626,1750143043148,-460.0,0.00024657,6]
[366231629,1750143043158,-478.85388198,0.00024657,6]
[366231632,1750143043168,-465.5096303,0.00024657,6]
[366231635,1750143043178,-462.45305805,0.00024657,6]
[366231638,1750143043187,-1267.09,0.00024657,6]
[366231641,1750143043197,-1267.09,0.00024657,6]
[366231645,1750143043207,-1267.09,0.00024657,6]
[366231648,1750143043217,-1267.09,0.00024657,6]
[366231651,1750143043226,-1267.09,0.00024657,6]
[366231654,1750143043236,-1267.09,0.00024657,6]
[366231656,1750143043245,-1267.09,0.00024657,6]
[366231658,1750143043255,-1267.09,0.00024657,6]
[366231660,1750143043265,-1267.09,0.00024657,6]
[366231662,1750143043274,-1267.09,0.00024657,6]
[366231665,1750143043284,-1267.09,0.00024657,6]
[366231669,1750143043294,-1267.09,0.00024657,6]
[366231671,1750143043304,-1267.09,0.00024657,6]
[366231674,1750143043313,-1267.09,0.00024657,6]
[366231677,1750143043323,-1267.09,0.00024657,6]
[366231680,1750143043333,-1267.09,0.00024657,6]
[366231683,1750143043343,-1267.09,0.00024657,6]
[366231686,1750143043353,-1267.09,0.00024657,6]
[366231689,1750143043363,-1267.09,0.00024657,6]
[366231692,1750143043373,-1267.09,0.00024657,6]
[366231695,1750143043382,-1267.09,0.00024657,6]
[366231698,1750143043392,-1267.09,0.00024657,6]
[366231701,1750143043402,-1267.09,0.00024657,6]
[366231704,1750143043411,-1267.21235316,0.00024657,6]
[366231707,1750143043421,-833.56,0.00024657,6]
[366231710,1750143043431,-833.56,0.00024657,6]
[366231713,1750143043441,-833.56,0.00024657,6]
[366231717,1750143043451,-833.56,0.00024657,6]
[366231719,1750143043460,-833.56,0.00024657,6]
[366231722,1750143043470,-833.56,0.00024657,6]
[366231725,1750143043479,-833.56,0.00024657,6]
[366231728,1750143043489,-833.56,0.00024657,6]
[366231731,1750143043498,-833.56,0.00024657,6]
[366231734,1750143043507,-833.56,0.00024657,6]
[366231737,1750143043517,-833.56,0.00024657,6]
[366231740,1750143043526,-833.56,0.00024657,6]
[366231742,1750143043536,-833.56,0.00024657,6]
[366231744,1750143043546,-833.56,0.00024657,6]
[366231746,1750143043556,-833.56,0.00024657,6]
[366231748,1750143043565,-833.56,0.00024657,6]
[366231750,1750143043576,-833.56,0.00024657,6]
[366231752,1750143043586,-833.56,0.00024657,6]
[366231754,1750143043595,-833.56,0.00024657,6]
[366231756,1750143043606,-833.56,0.00024657,6]
[366231758,1750143043616,-833.56,0.00024657,6]
[366231760,1750143043626,-833.56,0.00024657,6]
[366231762,1750143043635,-833.56,0.00024657,6]
[366231764,1750143043645,-833.68469081,0.00024657,6]
[366231766,1750143043655,-460.0,0.00024657,6]
[366231768,1750143043664,-468.46932996,0.00024657,6]
[366231770,1750143043674,-460.0,0.00024657,6]
[366231772,1750143043683,-460.0,0.00024657,6]
[366231774,1750143043693,-460.0,0.00024657,6]
[366231776,1750143043703,-460.0,0.00024657,6]
[366231778,1750143043712,-460.0,0.00024657,6]
[366231780,1750143043722,-460.0,0.00024657,6]
[366231781,1750143043731,-460.0,0.00024657,6]
[366231783,1750143043741,-460.0,0.00024657,6]
[366231785,1750143043750,-460.0,0.00024657,6]
[366231787,1750143043760,-460.0,0.00024657,6]
[366231789,1750143043769,-460.0,0.00024657,6]
[366231791,1750143043779,-460.0,0.00024657,6]
[366231793,1750143043789,-460.0,0.00024657,6]
[366231795,1750143043799,-460.0,0.00024657,6]
[366231797,1750143043808,-460.0,0.00024657,6]
[366231799,1750143043818,-460.0,0.00024657,6]
[366231801,1750143043827,-460.0,0.00024657,6]
[366231803,1750143043839,-460.0,0.00024657,6]
[366231805,1750143043850,-460.0,0.00024657,6]
[366231807,1750143043859,-460.0,0.00024657,6]
[366231809,1750143043869,-214.49180607,0.00024657,6]
[366231811,1750143043879,-468.01136794,0.00024657,6]
[366231813,1750143043890,-460.0,0.00024657,6]
[366231815,1750143043899,-460.0,0.00024657,6]
[366231817,1750143043909,-460.0,0.00024657,6]
[366231819,1750143043922,-460.0,0.00024657,6]
[366231821,1750143043932,-203.3417291,0.00024657,6]
[366231823,1750143043942,-516.94640837,0.00024657,7]
[366231825,1750143043951,-460.0,0.00024657,6]
[366231827,1750143043960,-460.0,0.00024657,6]
[366231829,1750143043970,-460.0,0.00024657,6]
[366231831,1750143043980,-460.0,0.00024657,6]
[366231833,1750143043989,-460.0,0.00024657,6]
[366231835,1750143043999,-460.0,0.00024657,6]
[366231837,1750143044009,-460.0,0.00024657,6]
[366231839,1750143044018,-460.0,0.00024657,6]
[366231841,1750143044028,-460.0,0.00024657,6]
[366231843,1750143044037,-460.0,0.00024657,6]
[366231845,1750143044046,-460.0,0.00024657,6]
[366231847,1750143044056,-460.0,0.00024657,6]
[366231849,1750143044066,-460.0,0.00024657,6]
[366231851,1750143044076,-351.55692138,0.00024657,6]
[366231853,1750143044086,-209.08111051,0.00024657,6]
[366231855,1750143044095,-460.0,0.00024657,6]
[366231857,1750143044106,-401.10089335,0.00024657,6]
[366231859,1750143044115,-390.72920089,0.00024657,6]
[366231861,1750143044125,-460.0,0.00024657,6]
[366231863,1750143044134,-489.10640052,0.00024657,6]
[366231865,1750143044144,-359.20174956,0.00024657,6]
[366231867,1750143044154,-460.0,0.00024657,6]
[366231869,1750143044164,-488.71128935,0.00024657,6]
[366231871,1750143044174,-460.0,0.00024657,6]
[366231873,1750143044184,-460.0,0.00024657,6]
[366231875,1750143044194,-460.0,0.00024657,6]
[366231877,1750143044204,-460.0,0.00024657,6]
[366231879,1750143044214,-460.0,0.00024657,6]
[366231881,1750143044224,-361.14525174,0.00024657,6]
[366231883,1750143044234,-460.0,0.00024657,6]
[366231885,1750143044246,-460.0,0.00024657,6]
[366231887,1750143044256,-342.30135903,0.00024657,6]
[366231889,1750143044267,-460.0,0.00024657,6]
[366231891,1750143044276,-460.0,0.00024657,6]
[366231893,1750143044286,-460.0,0.00024657,6]
[366231895,1750143044296,-460.0,0.00024657,6]
[366231897,1750143044306,-460.0,0.00024657,6]
[366231899,1750143044317,-460.0,0.00024657,6]
[366231901,1750143044327,-460.0,0.00024657,6]
[366231903,1750143044336,-460.0,0.00024657,6]
[366231905,1750143044346,-460.0,0.00024657,6]
[366231907,1750143044356,-496.18744657,0.00024657,6]
[366231909,1750143044366,-468.35225967,0.00024657,6]
[366231911,1750143044376,-600.0,0.00024657,6]
[366231913,1750143044386,-151.0,0.00024657,7]
[366231915,1750143044396,-200.038108,0.00024657,7]
[366231917,1750143044406,-460.0,0.00024657,2]
[366231919,1750143044416,-460.0,0.00024657,2]
[366231921,1750143044425,-585.12626078,0.00024657,2]
[366231923,1750143044436,-460.0,0.00024657,6]
[366231924,1750143044445,-460.0,0.00024657,6]
[366231926,1750143044455,-460.0,0.00024657,6]
[366231928,1750143044465,-460.0,0.00024657,6]
[366231930,1750143044474,-460.0,0.00024657,6]
[366231932,1750143044484,-460.0,0.00024657,6]
[366231934,1750143044494,-460.0,0.00024657,6]
[366231936,1750143044503,-460.0,0.00024657,6]
[366231938,1750143044513,-460.0,0.00024657,6]
[366231940,1750143044523,-460.0,0.00024657,6]
[366231942,1750143044532,-254.38862647,0.00024657,6]
[366231946,1750143044555,-205.61137353,0.00024657,6]
[366231948,1750143044565,-460.0,0.00024657,6]
[366231963,1750143044704,-460.0,0.00024657,6]
[366231965,1750143044716,-460.0,0.00024657,6]
[366231968,1750143044728,-460.0,0.00024657,6]
[366231970,1750143044738,-460.0,0.00024657,6]
[366231972,1750143044748,-460.0,0.00024657,6]
[366231974,1750143044757,-142.54320306,0.00024657,6]
[366232192,1750143047803,-193.82357382,0.00023999,2]
[366232193,1750143047815,-157.004144,0.00024,7]
[366232194,1750143047826,-317.45679694,0.00024657,6]
[366232195,1750143047836,-460.0,0.00024657,6]
[366232196,1750143047850,-459.47977665,0.00024657,6]
[366232216,1750143467370,270.79,0.00021918,60]
[366232223,1750143680663,172.891413,0.00013699,2]
[366232225,1750143711375,18499.74713963,0.00024657,120]
[366232237,1750143990825,5000.0,0.0002,2]
[366232265,1750144231942,-4371.75802144,0.00020318,2]
[366232542,1750144242953,-628.24197856,0.00020318,2]
[366232544,1750144242964,-1012.38,0.00020695,2]
[366232546,1750144242974,-1200.0,0.00022576,2]
[366232548,1750144242983,-824.12802044,0.00022577,2]
[366232550,1750144242995,-1200.64197956,0.00022577,2]
[366232552,1750144243005,-117.75800844,0.000229,8]
[366232832,1750144245934,-87.89288112,0.000229,8]
[366232834,1750144245945,-207.4,0.00022901,2]
[366232836,1750144245955,-406.0,0.00022926,2]
[366232838,1750144245964,-205.65088946,0.00023088,8]
[366232840,1750144245974,-113.40787658,0.00023275,8]
[366232842,1750144245987,-92.24301288,0.00023275,8]
[366232844,1750144245996,-205.65088946,0.00023463,9]
[366232846,1750144246005,-174.0,0.00023649,2]
[366232848,1750144246015,-1205.09046306,0.00023649,2]
[366232852,1750144246051,-819.64835284,0.00023649,2]
[366233190,1750144253150,718.82543156,0.0002,10]
[366233191,1750144253308,10000.0,0.0002,10]
[366233192,1750144253333,10000.0,0.0002,10]
[366233193,1750144253356,10000.0,0.0002,10]
[366233194,1750144253379,10000.0,0.0002,10]